bitfinex/quotes_SOLUSD_20240612
["timestamp","ask_amount","ask_price","bid_price","bid_amount"]
[1718197220126,0.438,159.26,159.17,0.17]
[1718197220496,0.438,159.31,159.19,0.17]
[1718197220711,0.438,159.31,159.19,0.68]
[1718197220902,0.438,159.29,159.2,0.17]
[1718197221211,0.438,159.27,159.17,0.17]
[1718197221525,44.2054,159.35,159.17,0.17]
[1718197221526,0.438,159.29,159.17,0.17]
[1718197221692,0.438,159.33,159.2,0.17]
[1718197221891,0.438,159.33,159.2,47.25]
[1718197222291,0.438,159.31,159.2,47.25]
[1718197222511,41.8835,159.35,159.2,47.25]
[1718197222512,0.438,159.33,159.22,0.17]
[1718197222712,0.438,159.33,159.24,26.74]
[1718197222898,0.438,159.4,159.26,100.17]
[1718197223103,0.438,159.38,159.28,0.17]
[1718197223402,0.438,159.38,159.22,20.0]
[1718197223403,0.438,159.31,159.2,2.24016591]
[1718197223709,0.438,159.31,159.21,0.17]
[1718197224310,31.1886,159.41,159.25,0.17]
[1718197224311,0.438,159.34,159.25,0.17]
[1718197224518,0.438,159.34,159.27,0.17]
[1718197224696,0.438,159.38,159.27,0.34]
[1718197225015,12.0594,159.43,159.27,0.34]
[1718197225016,0.438,159.42,159.29,100.17]
[1718197225216,0.438,159.42,159.32,0.17]
[1718197225516,0.438,159.42,159.32,0.68]
[1718197225712,0.438,159.4,159.32,0.51]
[1718197225917,0.438,159.37,159.29,0.17]
[1718197226100,0.438,159.37,159.28,0.68]
[1718197226612,0.438,159.37,159.3,0.17]
[1718197226815,0.438,159.39,159.28,20.68]
[1718197227017,0.438,159.42,159.31,100.0]
[1718197227194,0.438,159.42,159.32,0.68]
[1718197227398,0.438,159.42,159.34,0.17]
[1718197227609,0.438,159.42,159.34,0.68]
[1718197227802,4.6379,159.56,159.34,0.68]
[1718197227803,0.438,159.48,159.34,0.51]
[1718197228109,0.438,159.47,159.35,0.17]
[1718197228305,0.438,159.47,159.36,0.17]
[1718197228517,0.438,159.45,159.36,0.51]
[1718197228723,0.438,159.45,159.37,0.17]
[1718197228900,0.438,159.41,159.32,2.23847862]
[1718197229099,0.438,159.38,159.25,100.0]
[1718197229322,14.67874782,159.5,159.28,126.57]
[1718197229323,0.438,159.42,159.28,126.57]
[1718197229498,0.438,159.4,159.28,28.80904077]
[1718197229702,24.64,159.49,159.28,28.80904077]
[1718197229703,0.438,159.38,159.28,28.80904077]
[1718197230106,0.438,159.36,159.28,26.57]
[1718197231020,0.438,159.36,159.2,36.132]
[1718197231021,0.438,159.31,159.2,26.57]
[1718197231527,0.438,159.29,159.2,28.81016591]
[1718197232023,0.438,159.29,159.21,1.25569921]
[1718197232227,0.438,159.29,159.2,28.81016591]
[1718197232228,0.438,159.35,159.22,1.25573929]
[1718197232398,0.438,159.35,159.2,128.81016591]
[1718197232717,0.438,159.34,159.23,100.0]
[1718197232954,12.4222,159.38,159.24,126.46]
[1718197232955,12.8602,159.38,159.24,126.46]
[1718197233125,12.8602,159.38,159.26,100.0]
[1718197233543,0.438,159.36,159.27,0.17]
[1718197233753,12.8602,159.38,159.28,0.17]
[1718197234016,0.438,159.36,159.28,0.17]
[1718197235262,0.438,159.34,159.28,0.17]
[1718197235632,0.438,159.36,159.28,0.17]
[1718197235958,0.438,159.34,159.28,0.17]
[1718197236250,0.438,159.34,159.28,0.34]
[1718197236870,0.438,159.3,159.2,28.70016591]
[1718197237147,12.4222,159.38,159.22,100.0]
[1718197237148,0.438,159.32,159.22,100.0]
[1718197237329,12.4222,159.38,159.2,2.24016591]
[1718197237330,0.438,159.34,159.24,100.0]
[1718197237523,0.438,159.34,159.23,2.23974385]
[1718197237722,0.438,159.32,159.23,2.23974385]
[1718197237956,12.4222,159.38,159.24,100.0]
[1718197237957,12.8602,159.38,159.24,100.0]
[1718197238124,12.8602,159.38,159.26,100.0]
[1718197238327,12.8602,159.38,159.27,0.17]
[1718197238541,12.8602,159.38,159.27,0.68]
[1718197238742,0.438,159.36,159.28,100.0]
[1718197239060,12.8602,159.38,159.29,0.68]
[1718197239352,0.438,159.35,159.29,0.17]
[1718197239557,0.438,159.31,159.23,2.23974385]
[1718197239923,0.438,159.33,159.23,2.23974385]
[1718197240130,0.438,159.33,159.19,125.114456]
[1718197240360,12.4222,159.38,159.19,125.114456]
[1718197240361,0.438,159.3,159.19,125.114456]
[1718197240562,0.438,159.28,159.19,25.114456]
[1718197240935,0.438,159.28,159.17,26.46]
[1718197241139,0.438,159.26,159.16,17.0652]
[1718197241871,12.3485,159.27,159.17,100.0]
[1718197242162,0.438,159.26,159.16,17.0652]
[1718197242535,12.3485,159.27,159.16,17.0652]
[1718197242536,0.438,159.23,159.16,17.0652]
[1718197242760,12.3485,159.27,159.16,17.0652]
[1718197242761,0.438,159.25,159.16,17.0652]
[1718197242970,12.3485,159.27,159.16,17.0652]
[1718197242971,12.7865,159.27,159.16,117.0652]
[1718197243150,0.438,159.24,159.16,117.0652]
[1718197243349,0.438,159.26,159.16,117.0652]
[1718197243545,0.438,159.26,159.16,19.30592891]
[1718197243861,0.438,159.26,159.17,0.17]
[1718197244056,0.438,159.26,159.17,0.68]
[1718197244453,0.438,159.26,159.19,0.17]
[1718197244649,0.438,159.26,159.19,0.68]
[1718197244959,0.438,159.26,159.2,0.17]
[1718197245264,0.438,159.26,159.21,0.17]
[1718197245567,0.438,159.26,159.17,0.17]
[1718197245771,0.438,159.26,159.17,0.68]
[1718197245970,0.438,159.26,159.17,0.34]
[1718197246461,0.438,159.24,159.17,0.34]
[1718197246648,0.438,159.24,159.16,19.30592891]
[1718197246957,0.438,159.22,159.17,0.66465303]
[1718197247165,0.438,159.22,159.13,0.66557725]
[1718197249088,0.438,159.22,159.14,102.92101051]
[1718197249263,0.438,159.22,159.16,0.17]
[1718197249580,12.7865,159.27,159.18,0.17]
[1718197249760,0.438,159.25,159.18,1.35795872]
[1718197249958,0.438,159.25,159.18,0.68]
[1718197251372,12.3485,159.27,159.14,2.24101051]
[1718197251373,0.438,159.23,159.14,2.24101051]
[1718197252458,0.438,159.21,159.14,2.24101051]
[1718197253058,0.438,159.21,159.15,0.51]
[1718197253371,0.438,159.21,159.14,2.24101051]
[1718197254359,0.438,159.21,159.15,1.25488242]
[1718197254690,0.438,159.21,159.16,0.34]
[1718197254870,0.438,159.21,159.17,0.17]
[1718197255075,0.438,159.25,159.17,1.25456708]
[1718197255476,12.3485,159.27,159.17,1.25456708]
[1718197255477,0.438,159.21,159.17,1.25456708]
[1718197255682,0.438,159.19,159.17,1.25456708]
[1718197256169,0.438,159.19,159.15,1.25456708]
[1718197256571,0.438,159.21,159.16,0.51]
[1718197256768,0.438,159.21,159.16,1.76440944]
[1718197257691,0.438,159.23,159.16,1.76440944]
[1718197257992,0.438,159.23,159.17,0.17]
[1718197258170,12.7865,159.27,159.17,0.17]
[1718197258571,0.438,159.25,159.17,0.17]
[1718197258773,12.3485,159.27,159.17,0.17]
[1718197258774,12.7865,159.27,159.18,0.17]
[1718197258985,12.7865,159.27,159.18,0.51]
[1718197259186,12.7865,159.27,159.19,0.17]
[1718197259397,0.438,159.25,159.2,0.17]
[1718197259693,12.3485,159.27,159.2,0.17]
[1718197259694,12.7865,159.27,159.2,100.51]
[1718197259896,0.438,159.27,159.22,0.17]
[1718197260186,0.438,159.27,159.22,1.76488992]
[1718197260392,0.438,159.27,159.23,0.17]
[1718197260597,11.5061,159.31,159.24,0.17]
[1718197260773,11.5061,159.31,159.24,0.51]
[1718197261570,11.5061,159.31,159.23,0.34]
[1718197262001,11.5061,159.31,159.17,126.51]
[1718197262168,11.5061,159.31,159.15,130.7336]
[1718197262582,0.438,159.3,159.17,100.0]
[1718197263007,11.5061,159.31,159.14,2.24101051]
[1718197263008,0.438,159.27,159.14,2.24101051]
[1718197263211,0.438,159.25,159.14,2.24101051]
[1718197265022,0.438,159.25,159.13,126.51]
[1718197265023,0.438,159.25,159.15,102.2408697]
[1718197265404,0.438,159.25,159.16,0.34]
[1718197265599,0.438,159.25,159.17,0.51]
[1718197265793,0.438,159.25,159.18,0.17]
[1718197265991,0.438,159.25,159.19,0.17]
[1718197266918,0.438,159.25,159.17,0.34]
[1718197267120,0.438,159.25,159.16,0.68]
[1718197267613,11.4496,159.22,159.16,0.68]
[1718197267821,11.4496,159.22,159.15,2.2408697]
[1718197268693,0.438,159.21,159.15,2.2408697]
[1718197268895,11.4496,159.22,159.15,2.2408697]
[1718197269200,11.4496,159.22,159.16,0.17]
[1718197269401,11.4496,159.22,159.16,0.34]
[1718197270415,11.4496,159.22,159.17,0.34]
[1718197270605,11.4496,159.22,159.16,0.34]
[1718197270813,11.4496,159.22,159.18,0.17]
[1718197271017,0.438,159.25,159.18,0.34]
[1718197271410,0.438,159.25,159.19,0.34]
[1718197272309,0.438,159.25,159.2,0.17]
[1718197272697,0.438,159.25,159.2,0.34]
[1718197272917,0.438,159.25,159.19,0.34]
[1718197273321,0.438,159.25,159.18,0.34]
[1718197273619,0.438,159.23,159.17,0.34]
[1718197273823,0.438,159.21,159.15,2.2408697]
[1718197274202,0.438,159.19,159.15,2.2408697]
[1718197274516,29.1903,159.21,159.15,2.2408697]
[1718197274904,0.438,159.2,159.15,2.2408697]
[1718197275817,0.62833805,159.16,159.15,2.2408697]
[1718197276123,0.62833805,159.16,159.15,2.5808697]
[1718197276303,0.62833805,159.16,159.15,2.2408697]
[1718197276705,0.62833805,159.16,159.13,0.17]
[1718197276906,0.62833805,159.16,159.13,0.68]
[1718197291737,0.438,159.24,159.17,0.17]
[1718197291935,0.438,159.24,159.17,0.68]
[1718197292305,27.7781,159.25,159.19,0.17]
[1718197292506,0.438,159.28,159.21,0.17]
[1718197292823,0.438,159.28,159.23,0.17]
[1718197293041,0.438,159.28,159.23,0.68]
[1718197293553,0.438,159.28,159.19,28.19193286]
[1718197293749,0.438,159.25,159.2,0.34]
[1718197293937,0.438,159.25,159.2,0.17]
[1718197294135,0.438,159.21,159.18,6.43488555]
[1718197294336,8.8293,159.22,159.17,2.24058813]
[1718197294539,8.8293,159.22,159.15,100.0]
[1718197294753,8.8293,159.22,159.15,102.2408697]
[1718197294950,0.438,159.23,159.16,2.24072891]
[1718197295628,0.438,159.23,159.18,0.17]
[1718197295949,0.62821963,159.19,159.18,0.17]
[1718197296953,0.62821963,159.19,159.18,1.42509925]
[1718197297137,0.62821963,159.19,159.18,1.93509925]
[1718197297339,0.62821963,159.19,159.18,28.3699848]
[1718197297552,0.08821963,159.19,159.18,28.3699848]
[1718197297866,0.08821963,159.19,159.18,27.11488555]
[1718197298228,0.08821963,159.19,159.18,32.51495175]
[1718197298643,0.08821963,159.19,159.18,12.51495175]
[1718197298859,0.08821963,159.19,159.18,6.43488555]
[1718197299180,0.08821963,159.19,159.13,6.43488555]
[1718197299731,0.08821963,159.19,159.12,11.34905252]
[1718197299945,0.438,159.17,159.12,11.34905252]
[1718197300256,0.438,159.17,159.12,6.279]
[1718197300503,0.438,159.15,159.12,6.279]
[1718197301283,0.438,159.15,159.11,6.279]
[1718197302076,0.08821963,159.19,159.11,6.279]
[1718197302077,0.438,159.12,159.11,6.279]
[1718197302285,0.438,159.12,159.09,5.4000662]
[1718197302286,0.438,159.12,159.09,6.279]
[1718197302981,0.438,159.1,159.09,6.279]
[1718197303476,0.438,159.1,159.07,6.279]
[1718197304277,31.0221,159.13,159.02,6.279]
[1718197304278,0.438,159.08,159.02,6.279]
[1718197304591,0.438,159.1,159.02,8.52170163]
[1718197304792,0.438,159.07,159.02,8.52170163]
[1718197305157,2.41251963,159.19,159.12,6.279]
[1718197305158,0.08821963,159.19,159.12,6.279]
[1718197305467,8.9767,159.23,159.17,100.0]
[1718197305677,0.438,159.22,159.19,0.17]
[1718197305971,9.1091,159.27,159.19,100.34]
[1718197306158,10.0,159.39,159.19,100.34]
[1718197306159,30.7835,159.38,159.23,100.0]
[1718197306359,30.7835,159.38,159.24,0.51]
[1718197306559,30.7835,159.38,159.24,0.68]
[1718197306981,30.7835,159.38,159.26,0.17]
[1718197307183,30.7835,159.38,159.26,0.68]
[1718197308791,30.7835,159.38,159.27,0.17]
[1718197308996,30.7835,159.38,159.27,0.68]
[1718197309162,30.7835,159.38,159.27,100.68]
[1718197309360,30.7835,159.38,159.3,0.17]
[1718197309696,9.1091,159.38,159.32,0.17]
[1718197309856,31.748,159.42,159.33,100.0]
[1718197310061,31.748,159.42,159.34,0.68]
[1718197310263,31.748,159.42,159.32,25.267057]
[1718197310680,31.748,159.42,159.33,0.17]
[1718197310870,31.748,159.42,159.33,0.34]
[1718197311066,31.748,159.42,159.31,27.33699413]
[1718197311281,31.748,159.42,159.32,0.17]
[1718197311465,31.748,159.42,159.32,0.68]
[1718197312568,31.748,159.42,159.32,1.49930839]
[1718197313197,6.2589,159.48,159.38,0.17]
[1718197313375,6.2589,159.48,159.38,0.68]
[1718197313767,6.2589,159.48,159.34,26.5]
[1718197313967,6.2589,159.48,159.33,2.23833812]
[1718197314181,26.1013,159.47,159.33,2.23833812]
[1718197314695,2.3205,159.45,159.33,2.23833812]
[1718197314900,8.4214,159.47,159.33,2.23833812]
[1718197315067,6.1013,159.47,159.33,2.23833812]
[1718197315267,8.4215,159.47,159.33,2.23833812]
[1718197315492,21.6573,159.46,159.33,2.23833812]
[1718197315684,24.1477,159.46,159.33,2.23833812]
[1718197315888,0.6276282,159.34,159.33,2.23833812]
[1718197316089,0.6276282,159.34,159.29,25.101777]
[1718197316402,0.6276282,159.34,159.27,26.5]
[1718197316570,0.6276282,159.34,159.28,41.6573]
[1718197317292,0.6276282,159.34,159.29,102.2389002]
[1718197317491,0.6276282,159.34,159.31,100.0]
[1718197317699,0.6276282,159.34,159.32,2.91847862]
[1718197318404,0.6276282,159.34,159.33,102.40833812]
[1718197318563,0.6276282,159.34,159.33,122.91833812]
[1718197319975,0.03914782,159.5,159.37,100.0]
[1718197320172,0.03914782,159.5,159.38,20.68]
[1718197320368,0.03914782,159.5,159.4,0.17]
[1718197320677,0.03914782,159.5,159.41,100.0]
[1718197320879,0.03914782,159.5,159.42,0.68]
[1718197321269,0.03914782,159.5,159.42,20.68]
[1718197322191,0.03914782,159.5,159.44,0.17]
[1718197322373,0.03914782,159.5,159.44,0.68]
[1718197323305,0.03914782,159.5,159.48,0.17]
[1718197323610,0.03914782,159.5,159.45,2.23665358]
[1718197323902,0.03914782,159.5,159.37,26.5]
[1718197324104,0.03914782,159.5,159.38,102.23763592]
[1718197325091,0.03914782,159.5,159.4,100.0]
[1718197325304,0.03914782,159.5,159.38,2.23763592]
[1718197325305,0.03914782,159.5,159.38,102.23763592]
[1718197325486,0.03914782,159.5,159.39,20.0]
[1718197325685,0.03914782,159.5,159.4,0.34]
[1718197326396,0.03914782,159.5,159.41,0.34]
[1718197326599,0.03914782,159.5,159.4,0.17]
[1718197326803,0.03914782,159.5,159.39,20.0]
[1718197327009,0.03914782,159.5,159.38,2.23763592]
[1718197327190,0.03914782,159.5,159.34,28.384]
[1718197327191,23.3196,159.48,159.34,28.384]
[1718197327393,23.3196,159.48,159.35,22.23805719]
[1718197327799,0.03914782,159.5,159.39,100.0]
[1718197327995,0.03914782,159.5,159.4,20.0]
[1718197328494,0.03914782,159.5,159.37,126.5]
[1718197328699,0.03914782,159.5,159.39,0.17]
[1718197328897,0.03914782,159.5,159.39,100.34]
[1718197329081,0.03914782,159.5,159.41,0.17]
[1718197329284,0.03914782,159.5,159.39,0.17]
[1718197329493,0.03914782,159.5,159.37,26.5]
[1718197329694,0.03914782,159.5,159.36,2.23791675]
[1718197329695,6.57,159.48,159.36,2.23791675]
[1718197330508,2.3202,159.47,159.29,128.5067]
[1718197330708,2.3202,159.47,159.3,2.23875966]
[1718197331087,6.57,159.48,159.31,100.0]
[1718197331283,6.57,159.48,159.36,100.0]
[1718197331584,6.57,159.48,159.36,126.5]
[1718197331785,6.57,159.48,159.36,32.959]
[1718197331993,6.57,159.48,159.36,34.61460801]
[1718197332397,6.57,159.48,159.36,8.11460801]
[1718197332605,6.57,159.48,159.33,26.5]
[1718197332797,6.57,159.48,159.34,20.0]
[1718197333103,6.57,159.48,159.35,0.17]
[1718197333704,6.57,159.48,159.34,0.17]
[1718197333906,6.57,159.48,159.34,0.34]
[1718197334241,8.89,159.48,159.32,8.09662468]
[1718197334403,2.3202,159.47,159.32,8.09662468]
[1718197334604,6.57,159.48,159.32,108.09662468]
[1718197334913,6.57,159.48,159.32,134.59662468]
[1718197335120,6.57,159.48,159.33,108.09662468]
[1718197335283,6.57,159.48,159.35,100.0]
[1718197335487,6.57,159.48,159.36,0.34]
[1718197335716,6.57,159.48,159.36,0.68]
[1718197336087,6.57,159.48,159.36,20.68]
[1718197336283,0.03914782,159.5,159.36,0.68]
[1718197336507,22.1402,159.47,159.39,0.17]
[1718197337098,22.1402,159.47,159.39,100.17]
[1718197337289,6.608,159.47,159.41,0.17]
[1718197337489,6.608,159.47,159.41,100.17]
[1718197337719,0.03914782,159.5,159.43,0.17]
[1718197338057,0.03914782,159.5,159.43,0.68]
[1718197338728,0.03914782,159.5,159.43,100.68]
[1718197339232,0.03914782,159.5,159.45,0.17]
[1718197339547,0.03914782,159.5,159.45,0.68]
[1718197339842,0.03914782,159.5,159.45,0.51]
[1718197340144,0.03914782,159.5,159.44,2.23679386]
[1718197342080,0.03914782,159.5,159.39,126.5]
[1718197342253,0.03914782,159.5,159.41,0.17]
[1718197342453,0.03914782,159.5,159.41,0.51]
[1718197342671,0.03914782,159.5,159.47,0.17]
[1718197343002,0.03914782,159.5,159.47,20.68]
[1718197343550,0.03914782,159.5,159.47,0.51]
[1718197343756,0.03914782,159.5,159.45,20.0]
[1718197343954,0.03914782,159.5,159.44,0.17]
[1718197344169,0.03914782,159.5,159.43,26.5]
[1718197344689,15.7292,159.55,159.5,37.96085218]
[1718197353065,6.6117,159.58,159.5,37.96085218]
[1718197358896,16.2226,159.66,159.5,37.96085218]
[1718197358897,0.8479021,159.7,159.64,100.0]
[1718197359074,0.8479021,159.7,159.67,100.0]
[1718197359275,6.5398,159.77,159.69,100.0]
[1718197359510,2.3143,159.88,159.73,100.0]
[1718197359511,7.3877021,159.85,159.73,100.0]
[1718197359793,0.8479021,159.85,159.77,100.0]
[1718197359995,0.8479021,159.85,159.78,0.68]
[1718197360588,0.8479021,159.85,159.8,0.17]
[1718197360777,0.8479021,159.85,159.79,16.0004]
[1718197361497,0.8479021,159.85,159.78,100.34]
[1718197361701,0.8479021,159.85,159.84,0.17]
[1718197361910,0.0390298,159.99,159.84,20.68]
[1718197362085,0.0390298,159.99,159.86,0.17]
[1718197362272,0.0390298,159.99,159.84,20.68]
[1718197362273,0.0390298,159.99,159.84,0.68]
[1718197362474,0.0390298,159.99,159.87,0.17]
[1718197362679,0.0390298,159.99,159.87,0.51]
[1718197362895,0.0390298,159.99,159.88,100.17]
[1718197363202,0.0390298,159.99,159.89,2.23049855]
[1718197363376,0.0390298,159.99,159.87,100.0]
[1718197363377,0.0390298,159.99,159.88,0.68]
[1718197363579,0.0390298,159.99,159.88,2.74063806]
[1718197363780,9.8412442,159.99,159.88,2.23063806]
[1718197363993,9.8412442,159.99,159.84,26.27]
[1718197363994,12.1538442,159.99,159.84,26.27]
[1718197364199,9.8412442,159.99,159.85,2.2310567]
[1718197364403,10.0,159.97,159.81,100.0]
[1718197364603,19.8412442,159.99,159.83,100.0]
[1718197364810,19.8412442,159.99,159.79,110.0]
[1718197364989,12.313,159.97,159.79,112.23189444]
[1718197365181,9.8412442,159.99,159.83,100.0]
[1718197365684,9.8412442,159.99,159.8,2.23175478]
[1718197365685,9.8412442,159.99,159.85,100.0]
[1718197365903,9.8412442,159.99,159.84,2.23119628]
[1718197366087,2.313,159.96,159.84,2.23119628]
[1718197366405,2.313,159.96,159.85,0.63576773]
[1718197366605,2.313,159.96,159.81,0.80576773]
[1718197366790,2.3129,159.97,159.81,0.80576773]
[1718197366986,0.17,159.98,159.8,26.27]
[1718197367185,0.17,159.98,159.79,10.0]
[1718197367186,2.3138,159.91,159.79,10.0]
[1718197367483,6.4923,159.92,159.79,10.0]
[1718197368022,2.3138,159.91,159.79,10.0]
[1718197368202,8.8059,159.92,159.79,10.0]
[1718197368611,6.4923,159.92,159.79,10.0]
[1718197368784,6.4923,159.92,159.79,110.0]
[1718197368983,6.4923,159.92,159.79,10.0]
[1718197369884,6.4923,159.92,159.8,100.34]
[1718197370085,6.4923,159.92,159.8,2.23175478]
[1718197370514,6.4923,159.92,159.81,0.17]
[1718197370694,6.4923,159.92,159.8,2.23175478]
[1718197371816,8.8059,159.92,159.8,2.23175478]
[1718197372019,8.8059,159.92,159.79,10.0]
[1718197372020,0.17,159.91,159.79,10.0]
[1718197372225,2.3143,159.87,159.79,10.0]
[1718197372523,2.314,159.9,159.79,10.0]
[1718197372709,0.68,159.91,159.79,10.0]
[1718197372710,2.3138,159.91,159.79,10.0]
[1718197373024,6.4923,159.92,159.79,10.0]
[1718197373207,2.3138,159.91,159.79,10.0]
[1718197373391,6.4923,159.92,159.79,10.0]
[1718197373392,2.3139,159.9,159.79,10.0]
[1718197373792,2.3138,159.91,159.79,10.0]
[1718197374108,4.6282,159.89,159.68,106.3992]
[1718197374427,4.6282,159.89,159.63,15.9171]
[1718197374428,6.3205,159.8,159.63,115.9171]
[1718197374598,6.3205,159.8,159.7,16.5042]
[1718197375016,0.68,159.79,159.61,6.61169999]
[1718197375192,0.68,159.79,159.63,17.7433]
[1718197375403,2.3161,159.75,159.63,17.7433]
[1718197375796,10.0,159.78,159.63,17.7433]
[1718197376000,0.34,159.77,159.63,17.7433]
[1718197376230,2.486,159.76,159.63,17.7433]
[1718197376399,2.8261,159.75,159.61,6.61169999]
[1718197376594,2.3165,159.73,159.61,6.61169999]
[1718197376823,2.6562,159.74,159.61,6.61169999]
[1718197377395,2.4858,159.77,159.61,6.61169999]
[1718197377691,20.0,159.79,159.61,8.84611145]
[1718197377895,2.3157,159.78,159.62,100.0]
[1718197378235,16.3205,159.8,159.64,100.0]
[1718197378394,2.3158,159.77,159.63,2.23413151]
[1718197378821,2.3157,159.78,159.63,2.23413151]
[1718197379028,0.17,159.77,159.63,2.23413151]
[1718197379195,2.316,159.76,159.61,6.61169999]
[1718197379396,0.17,159.77,159.61,6.61169999]
[1718197379609,0.51,159.77,159.61,6.61169999]
[1718197379821,2.8258,159.77,159.61,6.61169999]
[1718197380002,0.17,159.77,159.61,8.84611145]
[1718197380203,0.17,159.76,159.61,8.84611145]
[1718197380415,2.3161,159.75,159.61,8.84611145]
[1718197380627,2.3162,159.74,159.61,8.84611145]
[1718197380804,2.3161,159.75,159.61,8.84611145]
[1718197381508,2.656,159.76,159.61,8.84611145]
[1718197381705,2.6561,159.75,159.61,8.84611145]
[1718197381928,2.6562,159.74,159.61,6.61169999]
[1718197382123,0.34,159.75,159.61,6.61169999]
[1718197382426,0.17,159.76,159.61,6.61169999]
[1718197382622,2.9959,159.76,159.61,6.61169999]
[1718197383311,0.68,159.76,159.61,6.61169999]
[1718197383511,6.4801,159.72,159.61,6.61169999]
[1718197383710,0.17,159.7,159.61,6.61169999]
[1718197384332,4.6348,159.66,159.61,6.61169999]
[1718197384497,2.3176,159.65,159.61,6.61169999]
[1718197384705,0.17,159.64,159.61,6.61169999]
[1718197384921,0.17,159.64,159.5,63.02780418]
[1718197384922,2.3178,159.63,159.5,63.02780418]
[1718197385107,0.34,159.64,159.5,37.96085218]
[1718197385322,0.34,159.63,159.5,37.96085218]
[1718197385522,6.1689,159.62,159.51,2.507212]
[1718197386703,0.51,159.61,159.51,2.507212]
[1718197386901,2.8282,159.61,159.51,2.507212]
[1718197387222,6.1689,159.62,159.51,2.507212]
[1718197388131,6.3002,159.68,159.51,102.507212]
[1718197388330,6.3002,159.68,159.52,26.39]
[1718197388506,6.3002,159.68,159.54,100.0]
[1718197388704,6.3002,159.68,159.55,20.0]
[1718197389231,6.3002,159.68,159.53,2.23553196]
[1718197389232,8.6174,159.68,159.53,22.23553196]
[1718197389431,2.3172,159.67,159.53,22.23553196]
[1718197389605,6.3002,159.68,159.53,22.23553196]
[1718197390033,2.3173,159.67,159.53,20.0]
[1718197390206,2.4874,159.66,159.52,26.39]
[1718197390622,2.3175,159.65,159.52,26.39]
[1718197390821,2.4874,159.66,159.52,26.39]
[1718197391018,2.3175,159.65,159.52,26.39]
[1718197391729,0.17,159.66,159.53,45.0]
[1718197392032,0.17,159.65,159.53,45.0]
[1718197392613,0.51,159.66,159.53,45.0]
[1718197392810,6.075,159.8,159.68,0.17]
[1718197393117,15.5124,159.86,159.7,0.17]
[1718197393118,22.0704,159.86,159.7,0.17]
[1718197393317,22.0704,159.86,159.7,165.68]
[1718197394533,22.0704,159.86,159.71,100.17]
[1718197394832,24.3849,159.86,159.72,45.0]
[1718197395127,3.1242122,159.85,159.7,65.0]
[1718197395337,2.3148,159.84,159.7,69.3849]
[1718197395503,0.8096122,159.85,159.7,69.3849]
[1718197396129,0.8096122,159.85,159.71,20.0]
[1718197396309,0.8096122,159.85,159.7,69.3849]
[1718197396505,0.8096122,159.85,159.71,20.0]
[1718197397239,3.1242122,159.85,159.71,20.0]
[1718197397528,2.315,159.83,159.71,20.0]
[1718197397707,3.1243122,159.85,159.71,20.0]
[1718197397914,0.8096122,159.85,159.71,20.0]
[1718197398529,0.8096122,159.85,159.71,120.0]